bitfinex/quotes_BTCUSD_20260311
["timestamp","ask_amount","ask_price","bid_price","bid_amount"]
[1773210019646,0.00116,69843.0,69836.0,0.14244262]
[1773210019969,0.00116,69843.0,69837.0,0.14244262]
[1773210020173,0.00116,69843.0,69828.0,0.0716044]
[1773210020174,0.03395146,69842.0,69830.0,0.04928686]
[1773210020375,0.03395146,69842.0,69831.0,0.14232234]
[1773210020581,0.00116,69843.0,69832.0,0.14232234]
[1773210020771,0.00116,69843.0,69834.0,0.07159836]
[1773210020977,0.00116,69843.0,69835.0,0.14232234]
[1773210021362,0.00116,69843.0,69834.0,0.07159836]
[1773210021537,0.07742857,69844.0,69835.0,0.14222561]
[1773210021758,0.00116,69842.0,69832.0,0.0715999]
[1773210021913,0.00116,69842.0,69833.0,0.14222574]
[1773210022084,0.00116,69842.0,69834.0,0.14222574]
[1773210022280,0.00116,69841.0,69831.0,0.0716013]
[1773210022542,0.00116,69841.0,69832.0,0.14214672]
[1773210022684,0.00116,69841.0,69833.0,0.14214672]
[1773210022885,0.07275128,69841.0,69834.0,0.21374495]
[1773210023084,0.07275128,69841.0,69832.0,0.07160022]
[1773210023320,0.07275128,69841.0,69833.0,0.14209477]
[1773210023536,0.07275128,69841.0,69832.0,0.07160022]
[1773210023689,0.07275128,69841.0,69833.0,0.14208132]
[1773210023896,0.10670274,69841.0,69830.0,0.04928686]
[1773210024098,0.10670274,69841.0,69831.0,0.14208126]
[1773210024287,0.10670274,69841.0,69832.0,0.14208126]
[1773210024631,0.10670274,69841.0,69821.0,0.07161169]
[1773210024632,0.03395146,69840.0,69821.0,0.07161169]
[1773210024834,0.03395146,69840.0,69820.0,0.16368621]
[1773210024835,0.03395146,69838.0,69823.0,0.07160964]
[1773210025012,0.03395146,69838.0,69824.0,0.1420393]
[1773210025407,0.03395146,69838.0,69824.0,0.17766438]
[1773210025596,0.03395146,69838.0,69825.0,0.1420393]
[1773210025798,0.03395146,69838.0,69826.0,0.1420393]
[1773210025997,0.03395146,69838.0,69824.0,0.03562508]
[1773210026305,0.03395146,69838.0,69825.0,0.14200556]
[1773210026505,0.03395146,69838.0,69824.0,0.03562508]
[1773210026712,0.03395146,69838.0,69825.0,0.14198253]
[1773210027107,0.10554674,69837.0,69825.0,0.07160759]
[1773210027281,0.03395146,69836.0,69825.0,0.07160759]
[1773210027483,0.03395146,69836.0,69822.0,0.07160964]
[1773210027696,0.03395146,69836.0,69816.0,0.07161644]
[1773210027850,0.03395146,69836.0,69817.0,0.14197265]
[1773210028052,0.03395146,69836.0,69815.0,0.07161757]
[1773210028252,0.03395146,69836.0,69816.0,0.14199363]
[1773210028456,0.03395146,69836.0,69815.0,0.07161757]
[1773210028660,0.03395146,69836.0,69816.0,0.14198736]
[1773210028885,0.03395146,69836.0,69815.0,0.07161757]
[1773210029086,0.03395146,69834.0,69816.0,0.14198736]
[1773210029295,0.03395146,69834.0,69813.0,0.07161948]
[1773210029494,0.04928686,69830.0,69811.0,0.000221]
[1773210029693,0.03511146,69829.0,69811.0,0.000221]
[1773210030866,0.00116,69828.0,69811.0,0.000221]
[1773210031069,0.03395146,69825.0,69811.0,0.000221]
[1773210033191,0.03395146,69823.0,69811.0,0.000221]
[1773210035033,0.03395146,69823.0,69804.0,0.07162896]
[1773210035034,0.03395146,69823.0,69804.0,0.0002]
[1773210035236,0.07160861,69825.0,69804.0,0.0002]
[1773210035237,0.03395146,69818.0,69804.0,0.0002]
[1773210035671,0.03395146,69818.0,69800.0,0.00023]
[1773210036642,0.03495146,69818.0,69800.0,0.00023]
[1773210037398,0.03395146,69816.0,69800.0,0.00023]
[1773210037599,0.03395146,69814.0,69800.0,0.00023]
[1773210039568,0.03283318,69812.0,69800.0,0.00023]
[1773210041492,0.03283318,69812.0,69801.0,0.14245113]
[1773210041704,0.07162195,69811.0,69802.0,0.14245113]
[1773210041896,0.07162195,69811.0,69800.0,0.00043]
[1773210042142,0.07162195,69811.0,69801.0,0.14245132]
[1773210042297,0.07162195,69811.0,69802.0,0.14245132]
[1773210042504,0.07162195,69811.0,69803.0,0.14245132]
[1773210042707,0.03283318,69810.0,69800.0,0.00043]
[1773210043815,0.071624,69809.0,69797.0,0.0002]
[1773210044133,0.071624,69809.0,69795.0,0.07203836]
[1773210044134,0.03283318,69808.0,69795.0,0.0004]
[1773210044988,0.03283318,69808.0,69796.0,0.14249412]
[1773210045205,0.03283318,69808.0,69797.0,0.14249412]
[1773210045415,0.03283318,69806.0,69798.0,0.14249412]
[1773210045730,0.03283318,69806.0,69795.0,0.0004]
[1773210045963,0.10446128,69805.0,69796.0,0.1424802]
[1773210046152,0.10446128,69805.0,69795.0,0.0004]
[1773210046153,0.03283318,69804.0,69795.0,0.0004]
[1773210048377,0.07163015,69803.0,69795.0,0.0004]
[1773210048923,0.03283318,69802.0,69789.0,0.07164378]
[1773210049328,0.03283318,69799.0,69786.0,0.07184738]
[1773210049637,0.03283318,69799.0,69786.0,0.07184749]
[1773210049851,0.03283318,69799.0,69786.0,0.0002]
[1773210050075,0.03283318,69799.0,69789.0,0.001]
[1773210050277,0.07163529,69798.0,69789.0,0.001]
[1773210051282,0.07163529,69798.0,69786.0,0.07184755]
[1773210051512,0.07163529,69798.0,69788.0,0.07726553]
[1773210051797,0.10626489,69798.0,69788.0,0.00662]
[1773210051978,0.10626489,69798.0,69788.0,0.00562]
[1773210055008,0.0008,69830.0,69801.0,0.0342666]
[1773210055207,0.0008,69830.0,69800.0,0.00023]
[1773210055208,0.07160451,69829.0,69816.0,0.0342666]
[1773210055816,0.00022001,69823.0,69816.0,0.0342666]
[1773210056611,0.07160348,69829.0,69816.0,0.0342666]
[1773210056811,0.00116,69823.0,69816.0,0.0342666]
[1773210057292,0.00116,69823.0,69817.0,0.07161579]
[1773210058036,0.00116,69823.0,69818.0,0.14267393]
[1773210058245,0.00116,69823.0,69819.0,0.14267393]
[1773210058450,0.00116,69823.0,69820.0,0.14267393]
[1773210058651,0.00116,69823.0,69821.0,0.14267393]
[1773210058853,0.00116,69823.0,69822.0,0.14267393]
[1773210061121,0.35552687,69894.0,69822.0,0.14267393]
[1773210061122,0.0346296,69842.0,69824.0,0.0342666]
[1773210061244,0.0346296,69842.0,69827.0,0.0342666]
[1773210061245,0.00116,69835.0,69827.0,0.0342666]
[1773210061444,0.07159344,69839.0,69827.0,0.0342666]
[1773210061445,0.07159234,69840.0,69828.0,0.14267393]
[1773210061645,0.07742812,69844.0,69830.0,0.0342666]
[1773210061646,0.00584001,69844.0,69830.0,0.0342666]
[1773210061852,0.00584001,69844.0,69832.0,0.0342666]
[1773210062092,0.00116,69843.0,69835.0,0.0342666]
[1773210062276,0.00116,69843.0,69833.0,0.14267393]
[1773210062277,0.07180151,69851.0,69837.0,0.0342666]
[1773210062465,0.07180151,69851.0,69833.0,0.04925458]
[1773210062466,0.00116,69846.0,69838.0,0.17694053]
[1773210062700,0.00022001,69851.0,69839.0,0.14267393]
[1773210062869,0.00116,69850.0,69841.0,0.0342666]
[1773210063063,0.00116,69849.0,69841.0,0.0342666]
[1773210063299,0.00116,69849.0,69843.0,0.0342666]
[1773210063515,0.00022001,69851.0,69843.0,0.0342666]
[1773210063804,0.00116,69848.0,69843.0,0.0342666]
[1773210064007,0.00022001,69851.0,69843.0,0.0342666]
[1773210064186,0.00138001,69851.0,69843.0,0.0342666]
[1773210064359,0.00138001,69851.0,69845.0,0.0342666]
[1773210064829,0.01160448,69852.0,69845.0,0.0342666]
[1773210064962,0.01276448,69852.0,69845.0,0.0342666]
[1773210065201,0.0346296,69851.0,69845.0,0.00048]
[1773210065403,0.0346296,69851.0,69843.0,0.06963861]
[1773210067429,0.0346296,69851.0,69837.0,0.07159528]
[1773210067629,0.07158176,69851.0,69838.0,0.14208762]
[1773210067789,0.0357896,69850.0,69836.0,0.07159551]
[1773210068617,0.0357896,69850.0,69837.0,0.001]
[1773210068796,0.0357896,69850.0,69836.0,0.07159551]
[1773210069434,0.10737217,69850.0,69836.0,0.07159551]
[1773210069638,0.00116,69849.0,69836.0,0.07159551]
[1773210069837,0.0346296,69850.0,69836.0,0.10586211]
[1773210070042,0.07158105,69851.0,69838.0,0.0342666]
[1773210070342,0.00116,69849.0,69836.0,0.07159551]
[1773210070570,0.0346296,69848.0,69836.0,0.07159551]
[1773210071156,0.0346296,69848.0,69832.0,0.07160014]
[1773210071358,0.0346296,69848.0,69834.0,0.07159836]
[1773210071359,0.0346296,69846.0,69834.0,0.07159836]
[1773210071533,0.0346296,69846.0,69833.0,0.07159865]
[1773210072254,0.0346296,69846.0,69832.0,0.07159956]
[1773210072504,0.0346296,69846.0,69827.0,0.07160553]
[1773210072668,0.0346296,69846.0,69828.0,0.14194765]
[1773210072874,0.0346296,69846.0,69829.0,0.14194765]
[1773210073072,0.0346296,69846.0,69828.0,0.0342666]
[1773210073269,0.07158708,69845.0,69830.0,0.07160246]
[1773210073453,0.00116,69844.0,69830.0,0.07160246]
[1773210073978,0.00116,69844.0,69830.0,0.10586906]
[1773210074384,0.00116,69844.0,69830.0,0.07160246]
[1773210074584,0.0346296,69843.0,69830.0,0.07160246]
[1773210074973,0.00116,69842.0,69830.0,0.07160246]
[1773210075474,0.07159118,69841.0,69829.0,0.07160246]
[1773210077513,0.07159118,69841.0,69829.0,0.10586906]
[1773210077928,0.07159016,69842.0,69829.0,0.10586906]
[1773210078128,0.07158201,69850.0,69831.0,0.0342666]
[1773210078276,0.00116,69849.0,69831.0,0.0342666]
[1773210078471,0.0357896,69849.0,69831.0,0.0342666]
[1773210079171,0.0357896,69849.0,69832.0,0.17635955]
[1773210079371,0.0357896,69849.0,69829.0,0.07260246]
[1773210079579,0.0357896,69849.0,69831.0,0.03488]
[1773210079852,0.0357896,69849.0,69833.0,0.03488]
[1773210080020,0.07158401,69848.0,69835.0,0.07159733]
[1773210080328,0.07158401,69848.0,69836.0,0.1421683]
[1773210080536,0.07158401,69848.0,69835.0,0.07159733]
[1773210080723,0.10420724,69848.0,69835.0,0.07159733]
[1773210081119,0.00116,69847.0,69836.0,0.14216815]
[1773210081326,0.00116,69847.0,69837.0,0.14216815]
[1773210081524,0.00116,69847.0,69835.0,0.07159733]
[1773210081745,0.00116,69847.0,69836.0,0.14224835]
[1773210081949,0.00116,69847.0,69837.0,0.14224835]
[1773210082152,0.07158606,69846.0,69838.0,0.14233811]
[1773210082476,0.07158606,69846.0,69839.0,0.14233811]
[1773210082669,0.07158606,69846.0,69835.0,0.07159733]
[1773210082871,0.07158606,69846.0,69836.0,0.1423477]
[1773210083022,0.07158606,69846.0,69837.0,0.1423477]
[1773210083227,0.07143244,69846.0,69838.0,0.1423477]
[1773210083427,0.07143244,69846.0,69839.0,0.14219364]
[1773210083634,0.07143244,69846.0,69835.0,0.07159733]
[1773210083838,0.07127881,69846.0,69835.0,0.07159733]
[1773210084185,0.07127881,69846.0,69837.0,0.11401264]
[1773210084942,0.03262323,69845.0,69837.0,0.11401264]
[1773210085123,0.03262323,69845.0,69836.0,0.11401264]
[1773210085327,0.07127881,69846.0,69837.0,0.14889264]
[1773210085777,0.07127881,69846.0,69837.0,0.11401264]
[1773210086476,0.07127881,69846.0,69838.0,0.11401264]
[1773210086981,0.00116,69845.0,69838.0,0.11401264]
[1773210087178,0.00116,69845.0,69839.0,0.11401264]
[1773210087482,0.00116,69844.0,69839.0,0.11401264]
[1773210087699,0.03262323,69842.0,69837.0,0.11401264]
[1773210088304,0.10421416,69842.0,69837.0,0.11401264]
[1773210088507,0.03262323,69841.0,69836.0,0.1142679]
[1773210088706,0.03262323,69841.0,69833.0,0.07179928]
[1773210089304,0.03262323,69841.0,69833.0,0.0002]
[1773210089472,0.03262323,69841.0,69833.0,0.02179887]
[1773210089988,0.03262323,69841.0,69832.0,0.0716001]
[1773210091115,0.07159221,69840.0,69831.0,0.07160143]
[1773210092897,0.10421544,69840.0,69831.0,0.07160143]
[1773210093076,0.03262323,69839.0,69827.0,0.0002]
[1773210093272,0.03262323,69837.0,69827.0,0.0002]
[1773210093666,0.03262323,69837.0,69831.0,0.0002]
[1773210094489,0.03262323,69837.0,69827.0,0.0002]
[1773210094692,0.03262323,69837.0,69824.0,0.0002]
[1773210095375,0.07159631,69836.0,69824.0,0.0002]
[1773210095578,0.03262323,69835.0,69820.0,0.0002]
[1773210097133,0.03262323,69835.0,69820.0,0.04943544]
[1773210098165,0.10689278,69834.0,69820.0,0.04943544]
[1773210098342,0.07159836,69834.0,69821.0,0.03459759]
[1773210099367,0.10689278,69834.0,69821.0,0.03459759]
[1773210100560,0.03529442,69833.0,69820.0,0.04943544]
[1773210100706,0.03529442,69833.0,69820.0,0.0002]
[1773210102215,0.07160041,69832.0,69820.0,0.0002]
[1773210102405,0.03645442,69831.0,69820.0,0.0002]
[1773210102813,0.03645442,69831.0,69821.0,0.0002]
[1773210104253,0.03645442,69831.0,69816.0,0.07723676]
[1773210104254,0.07160246,69830.0,69816.0,0.00562]
[1773210104436,0.03529442,69829.0,69814.0,0.0002]
[1773210104643,0.07160246,69830.0,69814.0,0.0002]
[1773210104644,0.07160246,69830.0,69815.0,0.03459759]
[1773210105037,0.07160246,69830.0,69814.0,0.07181887]
[1773210105251,0.03529442,69829.0,69814.0,0.0002]
[1773210105454,0.03529442,69829.0,69814.0,0.07181859]
[1773210106350,0.07160451,69828.0,69814.0,0.0002]
[1773210106546,0.03529442,69827.0,69814.0,0.0002]
[1773210108453,0.07160656,69826.0,69814.0,0.0002]
[1773210109060,0.10690098,69826.0,69814.0,0.0002]
[1773210113913,0.10408614,69826.0,69814.0,0.0002]
[1773210114718,0.00116,69825.0,69814.0,0.0002]
[1773210114937,0.00116,69824.0,69814.0,0.03347277]
[1773210116294,0.00116,69823.0,69815.0,0.07161784]
[1773210117331,0.03247958,69829.0,69815.0,0.07161784]
[1773210117537,0.00116,69828.0,69815.0,0.07161784]
[1773210118208,0.07160553,69827.0,69815.0,0.07161784]
[1773210118976,0.00116,69826.0,69815.0,0.07161784]
[1773210121197,0.07160759,69825.0,69815.0,0.07161784]
[1773210124183,0.07160759,69825.0,69814.0,0.0002]
[1773210125480,0.00116,69824.0,69814.0,0.0002]
[1773210126367,0.07160348,69829.0,69815.0,0.03327277]
[1773210126708,0.00116,69823.0,69815.0,0.03327277]
[1773210127067,0.00116,69822.0,69815.0,0.03327277]
[1773210129187,0.00116,69822.0,69816.0,0.07161682]
[1773210129398,0.07277104,69822.0,69814.0,0.07181887]
[1773210131277,0.07277104,69822.0,69814.0,0.0002]
[1773210131478,0.00116,69822.0,69814.0,0.0002]
[1773210131716,0.07277093,69822.0,69814.0,0.0002]
[1773210135372,0.00116,69822.0,69814.0,0.0002]
[1773210136062,0.07277101,69822.0,69814.0,0.0002]
[1773210141579,0.00116,69822.0,69814.0,0.0002]
[1773210143220,0.00116,69822.0,69814.0,0.07181887]
[1773210143221,0.07277104,69822.0,69814.0,0.07181887]
[1773210145400,0.00116,69822.0,69814.0,0.07181887]
[1773210146400,0.0727707,69822.0,69814.0,0.07181887]
[1773210146823,0.00116,69822.0,69814.0,0.07181887]
[1773210147028,0.07277124,69822.0,69814.0,0.07181887]
[1773210147948,0.07277124,69822.0,69814.0,0.07131218]
[1773210148647,0.00116,69822.0,69814.0,0.07131218]
[1773210149209,0.07277109,69822.0,69814.0,0.07151218]
[1773210150449,0.07277109,69822.0,69814.0,0.0002]
[1773210150655,0.07277109,69822.0,69814.0,3.108e-05]
[1773210154341,0.00116,69822.0,69814.0,3.108e-05]
[1773210155261,0.07277108,69822.0,69814.0,3.108e-05]
[1773210155673,0.07299109,69822.0,69814.0,3.108e-05]
[1773210160333,0.07299109,69822.0,69799.0,0.28579182]
[1773210160488,0.07299109,69822.0,69802.0,0.07163118]
[1773210160489,0.03118532,69819.0,69802.0,0.07163118]
[1773210160852,0.07299109,69822.0,69802.0,0.07163118]
[1773210160853,0.07299109,69822.0,69809.0,0.04924245]
[1773210161049,0.07299109,69822.0,69810.0,0.03088336]
[1773210161050,0.07299115,69822.0,69810.0,0.03088336]
[1773210163290,0.07299115,69822.0,69811.0,0.07162195]
[1773210163489,0.07299115,69822.0,69814.0,0.0002]
[1773210167672,0.07276864,69824.0,69814.0,0.0002]
[1773210168942,0.07376864,69824.0,69814.0,0.0002]
[1773210169658,0.00216,69824.0,69814.0,0.0002]
[1773210170056,0.00022001,69822.0,69814.0,0.0002]
[1773210173513,0.00122001,69822.0,69814.0,0.0002]
[1773210174076,0.00022001,69822.0,69814.0,0.0002]
[1773210176429,0.00122001,69822.0,69814.0,0.0002]
[1773210176723,0.00022001,69822.0,69814.0,0.0002]
[1773210177053,0.00122001,69822.0,69814.0,0.0002]
[1773210177176,0.00022001,69822.0,69814.0,0.0002]
[1773210177778,0.07183067,69822.0,69814.0,0.0002]
[1773210178211,0.00022001,69822.0,69814.0,0.0002]
[1773210178671,0.03309073,69821.0,69814.0,0.0002]
[1773210180332,0.10470246,69821.0,69814.0,0.0002]
[1773210186277,0.03309073,69821.0,69814.0,0.0002]
[1773210186503,0.10470298,69821.0,69814.0,0.0002]
[1773210187218,0.10570298,69821.0,69814.0,0.0002]
[1773210187822,0.10470298,69821.0,69814.0,0.0002]
[1773210187983,0.03309073,69821.0,69814.0,0.0002]
[1773210188185,0.10470263,69821.0,69814.0,0.0002]
[1773210189279,0.03309073,69821.0,69814.0,0.0002]
[1773210189482,0.10470247,69821.0,69814.0,0.0002]
[1773210189826,0.03309073,69820.0,69809.0,0.0716228]
[1773210190540,0.03309073,69820.0,69808.0,0.07162502]
[1773210192008,0.07161374,69819.0,69807.0,0.0002]
[1773210192209,0.10470447,69819.0,69807.0,0.0002]
[1773210195615,0.07161374,69819.0,69807.0,0.0002]
[1773210196560,0.03309073,69818.0,69807.0,0.0002]
[1773210197376,0.07161579,69817.0,69807.0,0.0002]
[1773210200155,0.07161519,69818.0,69807.0,0.0002]
[1773210200406,1e-08,69822.0,69808.0,0.0318237]
[1773210200588,1e-08,69822.0,69811.0,0.0318237]
[1773210202267,1e-08,69822.0,69812.0,0.07162092]
[1773210203276,0.00116,69821.0,69813.0,0.0318237]
[1773210203658,1e-08,69822.0,69813.0,0.0318237]
[1773210203902,0.00116,69821.0,69813.0,0.0318237]
[1773210204405,0.00116,69821.0,69814.0,0.07161887]
[1773210206700,0.00116,69821.0,69814.0,0.07144992]
[1773210207605,0.00116,69821.0,69814.0,0.10327362]
[1773210207780,1e-08,69822.0,69814.0,0.10327362]
[1773210208120,0.00116,69821.0,69814.0,0.10327362]
[1773210208537,1e-08,69822.0,69815.0,0.0318237]
[1773210208740,1e-08,69822.0,69816.0,0.07161682]
[1773210209472,0.00022001,69829.0,69816.0,0.07161682]
[1773210209676,0.33278694,69850.0,69816.0,0.07161682]
[1773210209677,0.00116,69834.0,69820.0,0.03073965]
[1773210209825,0.00116,69837.0,69825.0,0.03073965]
[1773210210023,0.00116,69837.0,69827.0,0.04924245]
[1773210210235,0.00116,69837.0,69828.0,0.03138664]
[1773210210456,0.00022001,69835.0,69828.0,0.03138664]
[1773210210649,0.00022001,69835.0,69820.0,0.24341298]
[1773210210863,0.00022001,69835.0,69822.0,0.03138664]
[1773210211446,0.03126594,69834.0,69820.0,0.07161271]
[1773210212857,0.07159938,69833.0,69819.0,0.07161271]
[1773210213058,0.04924245,69830.0,69819.0,0.07161271]
[1773210213253,0.07159938,69833.0,69819.0,0.07161271]
[1773210214930,0.07159938,69833.0,69819.0,0.10259026]
[1773210216971,0.1031618,69833.0,69819.0,0.10259026]
[1773210217770,0.1031618,69833.0,69819.0,0.10279026]
[1773210218797,0.00022001,69834.0,69820.0,0.03004725]
[1773210219139,0.12082868,69840.0,69820.0,0.03004725]
[1773210219140,0.00022001,69843.0,69824.0,0.04923554]
[1773210219280,0.00116,69842.0,69831.0,0.03004725]
[1773210220961,0.0013102,69843.0,69831.0,0.03004725]
[1773210221177,0.0001502,69843.0,69831.0,0.03004725]
[1773210222016,0.0001502,69843.0,69832.0,0.07160041]
[1773210222215,0.0001502,69843.0,69833.0,0.03004725]
[1773210224127,0.0001502,69843.0,69834.0,0.07159836]
[1773210226394,0.00037021,69843.0,69834.0,0.07159836]
[1773210228338,0.00037021,69843.0,69832.0,0.07160041]
[1773210228733,0.00037021,69843.0,69832.0,0.10117939]
[1773210230250,0.07195975,69843.0,69831.0,0.07159836]
[1773210230748,0.00037021,69843.0,69831.0,0.07159836]
[1773210231341,0.02955401,69843.0,69831.0,0.07159836]
[1773210234070,0.02955401,69843.0,69831.0,0.18569885]
[1773210234275,0.00037021,69843.0,69832.0,0.14308838]
[1773210234637,0.00116,69842.0,69833.0,0.07159938]
[1773210234838,0.00116,69841.0,69833.0,0.07159938]
[1773210235287,0.0013102,69841.0,69833.0,0.07159938]
[1773210235855,0.0001502,69841.0,69833.0,0.07159938]
[1773210236257,0.0001502,69841.0,69833.0,0.18569987]
[1773210237213,0.0001502,69841.0,69834.0,0.11410049]
[1773210237622,0.0001502,69841.0,69833.0,0.18569987]
[1773210238364,0.0001502,69841.0,69834.0,0.11410049]
[1773210239284,0.0001502,69841.0,69836.0,0.07159631]
[1773210244391,0.0001502,69841.0,69836.0,0.1856968]
[1773210246296,0.0001502,69841.0,69837.0,0.11410049]
[1773210248341,0.0001502,69841.0,69838.0,0.11410049]
[1773210248858,0.0001502,69841.0,69839.0,0.07159323]
[1773210249012,0.0001502,69841.0,69836.0,0.11453814]
[1773210249212,0.0291838,69838.0,69825.0,0.07180676]
[1773210249464,0.0291838,69838.0,69827.0,0.07160451]
[1773210251754,0.07259437,69838.0,69825.0,0.0002]
[1773210251953,0.0291838,69837.0,69825.0,0.0002]
[1773210252765,0.0291838,69837.0,69827.0,0.0002]
[1773210253160,0.0291838,69837.0,69821.0,0.07161169]
[1773210254821,0.0291838,69835.0,69820.0,0.07181169]
[1773210256249,0.0291838,69835.0,69820.0,0.12104723]
[1773210256924,0.0291838,69835.0,69821.0,0.03034209]
[1773210257294,0.00022001,69843.0,69821.0,0.03034209]
[1773210257525,0.029334,69849.0,69831.0,0.03034209]
[1773210257736,0.00116,69847.0,69831.0,0.03034209]
[1773210257902,0.0303438,69847.0,69831.0,0.03034209]
[1773210259203,0.10076986,69846.0,69832.0,0.07160041]
[1773210259993,0.00062001,69848.0,69833.0,0.03086731]
[1773210260194,0.00116,69847.0,69833.0,0.03086731]
[1773210260649,0.0300439,69847.0,69832.0,0.07160041]
[1773210261073,0.00022001,69841.0,69832.0,0.07160041]
[1773210261442,0.00022001,69841.0,69823.0,0.03066259]
[1773210261650,0.00022001,69841.0,69831.0,0.03066259]
[1773210263432,0.00022001,69841.0,69832.0,0.07160041]
[1773210263872,0.02910391,69841.0,69832.0,0.07160041]
[1773210264504,0.00022001,69841.0,69832.0,0.07160041]
[1773210267067,1e-08,69841.0,69832.0,0.07160041]
[1773210267694,1e-08,69841.0,69832.0,0.07180041]
[1773210272597,0.0288839,69840.0,69832.0,0.07180041]
[1773210274159,0.0288839,69840.0,69832.0,0.0002]
[1773210275752,0.0288839,69840.0,69827.0,0.07160553]
[1773210275910,0.0288839,69839.0,69825.0,0.07180553]
[1773210276552,0.03040006,69837.0,69825.0,0.0002]
[1773210278749,0.07159631,69836.0,69825.0,0.0002]
[1773210278948,0.03040006,69834.0,69825.0,0.0002]
[1773210279151,0.03040006,69834.0,69821.0,0.07181169]
[1773210279778,0.03048066,69834.0,69821.0,0.07181169]
[1773210281249,0.07159938,69833.0,69821.0,0.0002]
[1773210281436,0.03040006,69832.0,69821.0,0.0002]
[1773210281876,0.03048066,69832.0,69821.0,0.0002]
[1773210282478,0.03032697,69832.0,69821.0,0.0002]
[1773210284346,0.10177423,69832.0,69821.0,0.0002]
[1773210290071,0.07168158,69832.0,69821.0,0.0002]
[1773210290270,0.0277903,69831.0,69821.0,0.0002]
[1773210290978,0.0278709,69831.0,69821.0,0.0002]
[1773210293102,8.06e-05,69831.0,69821.0,0.0002]
[1773210293453,8.06e-05,69831.0,69821.0,0.02954273]
[1773210294056,8.06e-05,69831.0,69821.0,0.03004273]
[1773210295109,8.06e-05,69831.0,69822.0,0.07161066]
[1773210297802,8.06e-05,69831.0,69823.0,0.02934273]
[1773210298706,0.00116,69835.0,69823.0,0.02934273]
[1773210299010,1e-08,69836.0,69823.0,0.02934273]
[1773210299796,1e-08,69836.0,69825.0,0.02934273]
[1773210301262,1e-08,69836.0,69824.0,0.07160861]
[1773210301465,0.02779031,69836.0,69824.0,0.07160861]
[1773210303021,0.02779031,69836.0,69821.0,0.07231066]
[1773210303022,0.0277903,69832.0,69821.0,0.07231066]
[1773210304600,0.00116,69831.0,69821.0,0.07231066]
[1773210304802,0.00116,69831.0,69821.0,0.10165339]
[1773210305396,0.07181735,69836.0,69821.0,0.10165339]
[1773210305595,0.00116,69835.0,69821.0,0.10165339]
[1773210305836,0.07181735,69836.0,69821.0,0.10165339]
[1773210306140,0.00116,69834.0,69821.0,0.10165339]
[1773210307140,0.07275837,69834.0,69821.0,0.10165339]
[1773210307440,0.00116,69834.0,69822.0,0.02934273]
[1773210307844,0.0277903,69833.0,69821.0,0.07231066]
[1773210309696,0.0277903,69831.0,69821.0,0.07231066]
[1773210310668,0.00116,69830.0,69821.0,0.07231066]
[1773210310816,0.0277903,69829.0,69821.0,0.07231066]
[1773210311669,0.00116,69830.0,69821.0,0.07231066]
[1773210313887,0.0277903,69829.0,69821.0,0.07231066]
[1773210314093,0.0277903,69829.0,69818.0,0.00033079]
[1773210314495,0.0277903,69829.0,69814.0,0.07181789]
[1773210314697,0.0277903,69829.0,69816.0,0.0716162]
[1773210315308,0.0287903,69829.0,69816.0,0.0716162]
[1773210315512,0.0277903,69829.0,69816.0,0.0716162]
[1773210315896,0.0277903,69827.0,69815.0,0.07161697]
[1773210318428,0.0277903,69826.0,69815.0,0.07161697]
[1773210318748,0.00116,69830.0,69816.0,0.02934273]
[1773210318922,0.0727626,69830.0,69816.0,0.02934273]
[1773210319324,0.12198754,69830.0,69816.0,0.02934273]
[1773210319562,0.0727626,69830.0,69816.0,0.02934273]
[1773210319963,0.07182094,69832.0,69816.0,0.02934273]
[1773210320166,0.00022001,69832.0,69820.0,0.04922494]
[1773210320345,0.00116,69831.0,69822.0,0.07161066]
[1773210320547,0.00116,69831.0,69823.0,0.02832439]
[1773210321854,0.00116,69837.0,69823.0,0.02832439]
[1773210322229,0.00022001,69839.0,69823.0,0.02832439]
[1773210322429,1e-08,69841.0,69832.0,0.02832439]
[1773210322430,0.00116,69841.0,69832.0,0.02832439]
[1773210323220,0.00116,69841.0,69831.0,0.07160143]
[1773210324259,0.00116,69841.0,69831.0,0.07174703]
[1773210325739,0.02737544,69844.0,69831.0,0.07174703]
[1773210325947,0.00116,69843.0,69831.0,0.0001456]
[1773210326300,0.02737544,69842.0,69831.0,0.0001456]
[1773210326648,0.00116,69843.0,69831.0,0.0001456]
[1773210326908,0.02737544,69842.0,69831.0,0.0001456]
[1773210328887,0.02759545,69841.0,69831.0,0.0001456]
[1773210329087,0.02737544,69840.0,69831.0,0.0001456]
[1773210331030,0.02737544,69839.0,69831.0,0.0001456]
[1773210332239,0.00022001,69841.0,69831.0,0.0001456]
[1773210332240,0.00022001,69841.0,69832.0,0.02832439]
[1773210333096,0.00022001,69846.0,69834.0,0.02832439]
[1773210333312,0.07180624,69846.0,69834.0,0.02846999]
[1773210333906,0.02737544,69845.0,69834.0,0.0001456]
[1773210334114,0.02722173,69845.0,69834.0,0.0001456]
[1773210335157,0.09880924,69845.0,69834.0,0.0001456]
[1773210335354,0.02737544,69844.0,69834.0,0.0001456]
[1773210335649,0.00022001,69841.0,69834.0,0.0001456]
[1773210335808,6.627e-05,69841.0,69834.0,0.0001456]
[1773210338513,6.627e-05,69841.0,69834.0,0.0276029]
[1773210338943,6.627e-05,69841.0,69834.0,0.0001456]
[1773210350075,0.02748791,69841.0,69834.0,0.0001456]
[1773210350290,6.627e-05,69841.0,69834.0,0.0001456]
[1773210355191,0.02742164,69840.0,69832.0,0.0002]
[1773210357195,6.627e-05,69841.0,69832.0,0.0002]
[1773210360552,6.627e-05,69841.0,69833.0,0.02817636]
[1773210361155,6.627e-05,69841.0,69832.0,0.0002]
[1773210365900,0.02748791,69841.0,69832.0,0.0002]
[1773210366092,6.627e-05,69841.0,69832.0,0.0002]
[1773210366691,6.627e-05,69841.0,69825.0,0.0002]
[1773210366692,0.02742164,69840.0,69825.0,0.0002]
[1773210366887,0.02742164,69834.0,69823.0,0.07160935]
[1773210367087,0.02742164,69832.0,69820.0,0.07161187]
[1773210367289,0.05037598,69833.0,69820.0,0.07161187]
[1773210367290,0.07663762,69830.0,69820.0,0.07161187]
[1773210367494,0.14824034,69830.0,69820.0,0.07161187]
[1773210369816,0.07663762,69830.0,69819.0,0.0001456]
[1773210369993,0.02742164,69830.0,69819.0,0.0001456]
[1773210370606,0.07160246,69832.0,69819.0,0.0001456]
[1773210371444,0.001,69830.0,69819.0,0.0001456]
[1773210371816,0.07160246,69832.0,69819.0,0.0001456]
[1773210372013,0.04300498,69864.0,69820.0,0.04921598]
[1773210372014,0.0715933,69839.0,69820.0,0.04921598]
[1773210372220,0.14298862,69840.0,69821.0,0.02817636]
[1773210372439,0.00116,69839.0,69821.0,0.02817636]
[1773210373930,0.00116,69839.0,69823.0,0.02817636]
[1773210374138,0.12080887,69840.0,69823.0,0.02817636]
[1773210374335,0.00216,69839.0,69823.0,0.02817636]